fUSD/lending_fUSD_20240418
["ID","MTS","AMOUNT","RATE_DAILY","PERIOD"]
[322881177,1713469844881,-643.802788,0.000176,2]
[322881178,1713469844890,-197.227402,0.000176,2]
[322881179,1713469844900,-336.032616,0.000176,2]
[322881180,1713469844909,-219.180519,0.000176,2]
[322881181,1713469844919,-336.032616,0.000176,2]
[322881182,1713469844928,-219.180519,0.000176,2]
[322881183,1713469844937,-22000.0,0.000176,6]
[322881184,1713469844946,-303.09166657,0.00017614,2]
[322881185,1713469844955,-151.0,0.00017645,2]
[322881186,1713469844964,-151.0,0.00017645,2]
[322881187,1713469844973,-155.272442,0.00017645,2]
[322881188,1713469844983,-155.272442,0.00017645,2]
[322881189,1713469844994,-159.586818,0.00017645,2]
[322881190,1713469845003,-1741.623513,0.00017645,2]
[322881191,1713469845012,-1741.623513,0.00017645,2]
[322881192,1713469845022,-159.586818,0.00017645,2]
[322881193,1713469845031,-151.0,0.0001767,2]
[322881194,1713469845041,-151.0,0.0001767,2]
[322881195,1713469845051,-621.50221,0.0001767,2]
[322881196,1713469845060,-621.50221,0.0001767,2]
[322881197,1713469845069,-951.94793,0.0001767,2]
[322881198,1713469845079,-951.94793,0.0001767,2]
[322881199,1713469845088,-1042.523736,0.0001767,2]
[322881200,1713469845097,-1042.523736,0.0001767,2]
[322881201,1713469845108,-7587.63809557,0.00017679,2]
[322881202,1713469845119,-10226.24141093,0.00017679,2]
[322881203,1713469845131,-151.0,0.00017679,2]
[322881204,1713469845141,-151.0,0.00017679,2]
[322881205,1713469845152,-151.0,0.00017679,2]
[322881206,1713469845161,-155.84949,0.00017679,2]
[322881207,1713469845176,-155.84949,0.00017679,2]
[322881208,1713469845186,-151.0,0.00017679,2]
[322881209,1713469845195,-151.0,0.00017679,2]
[322881210,1713469845205,-151.0,0.00017679,2]
[322881211,1713469845215,-151.0,0.00017679,2]
[322881212,1713469845224,-151.0,0.00017679,2]
[322881213,1713469845233,-151.0,0.00017679,2]
[322881214,1713469845242,-215.7408,0.00017679,2]
[322881215,1713469845252,-215.7408,0.00017679,2]
[322881216,1713469845261,-151.0,0.00017679,2]
[322881217,1713469845270,-151.0,0.00017679,2]
[322881218,1713469845278,-151.0,0.00017679,2]
[322881219,1713469845287,-200.26933,0.00017679,2]
[322881220,1713469845296,-200.26933,0.00017679,2]
[322881221,1713469845305,-620.387791,0.00017679,2]
[322881222,1713469845314,-151.0,0.00017679,2]
[322881223,1713469845323,-620.387791,0.00017679,2]
[322881224,1713469845332,-450.596083,0.00017679,2]
[322881225,1713469845342,-450.596083,0.00017679,2]
[322881227,1713469845351,-268.779777,0.00017679,2]
[322881231,1713469845361,-268.779777,0.00017679,2]
[322881233,1713469845371,-151.0,0.00017679,2]
[322881236,1713469845381,-151.0,0.00017679,2]
[322881238,1713469845391,-216.99868,0.00017679,2]
[322881239,1713469845400,-216.99868,0.00017679,2]
[322881242,1713469845409,-363.06994,0.00017679,2]
[322881244,1713469845418,-363.06994,0.00017679,2]
[322881247,1713469845427,-1414.264742,0.00017679,2]
[322881248,1713469845437,-1414.264742,0.00017679,2]
[322881249,1713469845447,-243.215755,0.00017679,2]
[322881250,1713469845456,-243.215755,0.00017679,2]
[322881251,1713469845466,-205.51417054,0.00017679,2]
[322881253,1713469845476,-205.51417054,0.00017679,2]
[322881255,1713469845485,-205.51417054,0.00017679,2]
[322881256,1713469845495,-3242.77,0.00017679,2]
[322881257,1713469845504,-3242.77,0.00017679,2]
[322881258,1713469845513,-3242.77,0.00017679,2]
[322881259,1713469845523,-3242.77,0.00017679,2]
[322881261,1713469845533,-3242.77,0.00017679,2]
[322881263,1713469845542,-3242.77,0.00017679,2]
[322881264,1713469845551,-3242.77,0.00017679,2]
[322881265,1713469845560,-3242.77,0.00017679,2]
[322881266,1713469845569,-3242.77,0.00017679,2]
[322881267,1713469845579,-3242.77,0.00017679,2]
[322881268,1713469845588,-3242.77,0.00017679,2]
[322881269,1713469845597,-3242.77,0.00017679,2]
[322881270,1713469845606,-3242.77,0.00017679,2]
[322881271,1713469845615,-3242.77,0.00017679,2]
[322881272,1713469845624,-3242.98369012,0.00017679,2]
[322881273,1713469845633,-261898.16686273,0.0001768,2]
[322881274,1713469845651,-779164.36908855,0.0001768,2]
[322881280,1713469846899,-150.0,0.00017241,2]
[322881281,1713469846910,-150.0,0.00017263,2]
[322881282,1713469846919,-150.0,0.00017304,2]
[322881283,1713469846928,-150.0,0.00017315,2]
[322881284,1713469846937,-150.0,0.00017399,2]
[322881285,1713469846946,-150.0,0.00017418,2]
[322881286,1713469846956,-150.0,0.00017425,2]
[322881287,1713469846965,-150.0,0.00017447,2]
[322881288,1713469846974,-150.0,0.00017473,2]
[322881289,1713469846983,-151.0,0.00017526,2]
[322881290,1713469846992,-796.300179,0.00017526,2]
[322881291,1713469847002,-3139.71092213,0.0001768,2]
[322881292,1713469847414,-150.0,0.00017312,2]
[322881293,1713469847425,-150.0,0.00017423,2]
[322881294,1713469847435,-6.44999999,0.00017471,2]
[322881295,1713469847499,-150.0,0.00017436,2]
[322881296,1713469847509,-143.55000001,0.00017471,2]
[322881297,1713469847518,-150.0,0.00017499,2]
[322881298,1713469847527,-150.0,0.00017503,2]
[322881299,1713469847536,-150.0,0.00017508,2]
[322881300,1713469847546,-5274.35005342,0.0001768,2]
[322881301,1713469847558,-1010.0,0.0001768,2]
[322881302,1713469849359,-650.87,0.00016374,2]
[322881303,1713469849370,-150.0,0.00017306,2]
[322881304,1713469849380,-150.0,0.00017381,2]
[322881305,1713469849389,-150.0,0.0001739,2]
[322881306,1713469849397,-150.0,0.00017412,2]
[322881307,1713469849406,-150.0,0.00017419,2]
[322881308,1713469849416,-150.0,0.00017419,2]
[322881309,1713469849425,-468.2878516,0.00017426,2]
[322881310,1713469849434,-150.0,0.00017442,2]
[322881311,1713469849443,-150.0,0.00017469,2]
[322881312,1713469849452,-150.0,0.0001747,2]
[322881313,1713469849461,-150.0,0.00017473,2]
[322881314,1713469849470,-150.0,0.00017478,2]
[322881315,1713469849479,-150.0,0.00017497,2]
[322881316,1713469849488,-151.0,0.000175,2]
[322881317,1713469849497,-150.0,0.00017507,2]
[322881318,1713469849507,-151.0,0.00017526,2]
[322881319,1713469849516,-151.0,0.00017645,2]
[322881320,1713469849525,-13067.02281677,0.0001768,2]
[322881321,1713469850722,-151.0,0.000175,2]
[322881322,1713469850732,-234.401005,0.0001768,2]
[322881323,1713469853418,-1293.26801217,0.00016148,2]
[322881324,1713469853427,-263.53198403,0.00016998,2]
[322881325,1713469853454,-959.0593579,0.00016998,2]
[322881326,1713469853463,-730.0,0.00017199,2]
[322881327,1713469853472,-155.0,0.0001724,2]
[322881328,1713469853482,-150.0,0.00017337,2]
[322881329,1713469853492,-150.0,0.00017459,2]
[322881330,1713469853501,-151.0,0.00017645,2]
[322881331,1713469853510,-214.1737921,0.0001768,2]
[322881332,1713469853522,-2328.78405968,0.0001768,2]
[322881333,1713469855120,-480.95020404,0.0001768,2]
[322881334,1713469855131,-105859.26411657,0.0001768,2]
[322881335,1713469914756,15012.0,0.00015,10]
[322881336,1713469914980,116006.64131794,0.0001539,2]
[322881338,1713470003731,3927.38825858,0.0001305,2]
[322881339,1713470039544,319.70080444,0.0001539,2]
[322881340,1713470039689,331.98570314,0.0001539,2]
[322881341,1713470040069,155.0,0.0001539,2]
[322881342,1713470040237,647.97418161,0.0001539,2]
[322881343,1713470040537,543.02166452,0.0001539,2]
[322881344,1713470040585,155.23386261,0.00015208,2]
[322881345,1713470040785,749.26852786,0.00015208,2]
[322881346,1713470041058,298.68138982,0.0001539,2]
[322881347,1713470042481,365.58946296,0.0001539,2]
[322881348,1713470042597,155.0,0.0001539,2]
[322881349,1713470043507,449.23128283,0.0001539,2]
[322881350,1713470043666,408.28828866,0.0001539,2]
[322881351,1713470046619,1466.57054899,0.00012,2]
[322881352,1713470046791,693.00796219,0.0001539,2]
[322881353,1713470046975,179.55725159,0.0001539,2]
[322881354,1713470049179,1032.84868287,0.0001539,2]
[322881355,1713470049311,273.97479475,0.0001539,2]
[322881356,1713470049339,344.0903857,0.0001539,2]
[322881357,1713470049806,173.91012438,0.0001539,2]
[322881358,1713470051411,441.23223615,0.00012674,2]
[322881359,1713470051699,289.34673529,0.0001539,2]
[322881360,1713470051809,323.54771972,0.0001539,2]
[322881361,1713470052142,545.48295772,0.00012312,2]
[322881362,1713470053395,155.0,0.0001539,2]
[322881363,1713470054393,487.99729998,0.00015208,2]
[322881364,1713470056455,298.68138982,0.0001539,2]
[322881365,1713470056639,319.70080444,0.0001539,2]
[322881366,1713470056902,331.98570314,0.0001539,2]
[322881367,1713470058439,365.58946296,0.0001539,2]
[322881368,1713470061413,553.33986359,0.0001539,2]
[322881369,1713470061615,408.28828866,0.0001539,2]
[322881370,1713470061935,1000.0,0.000135,2]
[322881371,1713470063128,155.0,0.0001539,2]
[322881372,1713470064412,155.0,0.0001539,2]
[322881374,1713470065912,750.0,0.000137,2]
[322881375,1713470067436,160.12879579,0.0001539,2]
[322881376,1713470068262,344.0903857,0.0001539,2]
[322881377,1713470069109,323.54771972,0.0001539,2]
[322881378,1713470071917,361.0571483,0.0001539,2]
[322881379,1713470072088,155.0,0.0001539,2]
[322881380,1713470072572,179.55725159,0.0001539,2]
[322881381,1713470073035,319.70080444,0.0001539,2]
[322881382,1713470073343,172.96455134,0.0001539,2]
[322881383,1713470073416,553.33986359,0.0001539,2]
[322881384,1713470073759,545.48295772,0.00012312,2]
[322881385,1713470075201,63688.92125675,0.00015,2]
[322881386,1713470076306,365.58946296,0.0001539,2]
[322881387,1713470078572,298.68138982,0.0001539,2]
[322881388,1713470078900,208.63891399,0.0001,2]
[322881389,1713470079442,408.28828866,0.0001539,2]
[322881390,1713470085060,344.0903857,0.0001539,2]
[322881391,1713470086838,155.48161122,0.0001539,2]
[322881392,1713470087106,155.0,0.0001539,2]
[322881393,1713470088864,172.96455134,0.0001539,2]
[322881394,1713470088924,323.54771972,0.0001539,2]
[322881395,1713470093278,319.70080444,0.0001539,2]
[322881396,1713470093667,361.0571483,0.0001539,2]
[322881397,1713470093944,205.39597181,0.0001539,2]
[322881398,1713470094482,365.58946296,0.0001539,2]
[322881399,1713470095470,288.29006893,0.0001539,2]
[322881400,1713470096463,345.66027776,0.0001539,2]
[322881401,1713470097447,408.28828866,0.0001539,2]
[322881402,1713470100512,202.20556811,0.00015389,2]
[322881403,1713470101131,363.01604032,0.00015389,2]
[322881404,1713470103831,155.0,0.0001539,2]
[322881405,1713470106438,344.0903857,0.0001539,2]
[322881406,1713470107202,200.0,0.00015282,2]
[322881407,1713470108554,682.31,0.00015282,2]
[322881408,1713470109106,267.27511334,0.00015389,2]
[322881409,1713470109174,361.0571483,0.0001539,2]
[322881410,1713470109713,2000.0,0.00015282,3]
[322881411,1713470110199,365.58946296,0.0001539,2]
[322881412,1713470110889,172.96455134,0.0001539,2]
[322881413,1713470110955,323.54771972,0.0001539,2]
[322881414,1713470116807,155.0,0.0001539,2]
[322881415,1713470117060,288.29006893,0.0001539,2]
[322881416,1713470117444,408.28828866,0.0001539,2]
[322881417,1713470122578,356.80223255,0.0001539,2]
[322881418,1713470125866,361.0571483,0.0001539,2]
[322881419,1713470126450,365.58946296,0.0001539,2]
[322881420,1713470126900,323.54771972,0.0001539,2]
[322881421,1713470132959,172.96455134,0.0001539,2]
[322881422,1713470134926,155.0,0.0001539,2]
[322881423,1713470138394,408.28828866,0.0001539,2]
[322881424,1713470139904,288.29006893,0.0001539,2]
[322881425,1713470141530,361.0571483,0.0001539,2]
[322881426,1713470149380,172.96455134,0.0001539,2]
[322881427,1713470150420,365.58946296,0.0001539,2]
[322881428,1713470151584,323.54771972,0.0001539,2]
[322881429,1713470152822,234.06702851,0.0001539,2]
[322881430,1713470155096,288.29006893,0.0001539,2]
[322881431,1713470155467,408.28828866,0.0001539,2]
[322881432,1713470157072,361.0571483,0.0001539,2]
[322881433,1713470167510,200.0,0.00015313,2]
[322881434,1713470169797,323.54771972,0.0001539,2]
[322881435,1713470171470,172.96455134,0.0001539,2]
[322881436,1713470172501,365.58946296,0.0001539,2]
[322881437,1713470175458,408.28828866,0.0001539,2]
[322881438,1713470177349,288.29006893,0.0001539,2]
[322881439,1713470180168,361.0571483,0.0001539,2]
[322881440,1713470183956,325.49677635,0.00015389,2]
[322881441,1713470188941,172.96455134,0.0001539,2]
[322881442,1713470188985,323.54771972,0.0001539,2]
[322881443,1713470190934,365.58946296,0.0001539,2]
[322881444,1713470198242,23900.0,0.00015276,2]
[322881445,1713470202013,288.29006893,0.0001539,2]
[322881446,1713470202042,361.0571483,0.0001539,2]
[322881447,1713470202271,408.28828866,0.0001539,2]
[322881448,1713470204947,172.96455134,0.0001539,2]
[322881449,1713470211201,323.54771972,0.0001539,2]
[322881450,1713470213228,387.53000113,0.0001539,2]
[322881451,1713470219132,361.0571483,0.0001539,2]
[322881452,1713470221175,288.29006893,0.0001539,2]
[322881453,1713470221535,408.28828866,0.0001539,2]
[322881454,1713470224044,172.96455134,0.0001539,2]
[322881455,1713470230865,155.0,0.00015389,2]
[322881456,1713470231240,323.54771972,0.0001539,2]
[322881457,1713470237483,422.28503893,0.0001539,2]
[322881458,1713470237517,288.29006893,0.0001539,2]
[322881459,1713470239549,408.28828866,0.0001539,2]
[322881460,1713470243052,172.96455134,0.0001539,2]
[322881461,1713470255036,191.35024073,0.0001539,2]
[322881462,1713470255159,288.29006893,0.0001539,2]
[322881463,1713470261062,182.14987354,0.0001539,2]
[322881464,1713470264047,248.03038336,0.0001539,2]
[322881465,1713470277085,336.90772574,0.0001539,2]
[322881466,1713470282459,1830.34,0.00015272,2]
[322881467,1713470289782,180.05,0.00013739,2]
[322881468,1713470290092,180.05,0.00015457,2]
[322881469,1713470308813,419.82,0.00015405,2]
[322881470,1713470310244,151.11010631,0.00015328,2]
[322881471,1713470330155,179.5896633,0.00015426,2]
[322881472,1713470330496,1140.53,0.00015283,2]
[322881473,1713470350113,305.64,0.00015266,2]
[322881474,1713470361239,169.37,0.00015301,2]
[322881475,1713470374486,833.05,0.00013406,2]
[322881476,1713470385045,3907.83,0.00015314,2]
[322881477,1713470394995,164.83,0.00012251,2]
[322881478,1713470395181,164.83,0.00013476,2]
[322881479,1713470395567,164.83,0.00014701,2]
[322881480,1713470402240,150.0,0.00013406,2]
[322881481,1713470402454,150.0,0.00013406,2]
[322881482,1713470402671,150.0,0.00013406,2]
[322881483,1713470402860,150.0,0.00013406,2]
[322881484,1713470403105,150.0,0.00013406,2]
[322881485,1713470403245,150.0,0.00013406,2]
[322881486,1713470403523,150.0,0.00013406,2]
[322881487,1713470403758,150.0,0.00013406,2]
[322881488,1713470403914,150.0,0.00013406,2]
[322881489,1713470404466,150.0,0.00013406,2]
[322881490,1713470404621,150.0,0.00013406,2]
[322881491,1713470404735,150.0,0.00013406,2]
[322881492,1713470406580,150.0,0.00013406,2]
[322881493,1713470406835,150.0,0.00013406,2]
[322881494,1713470406937,150.0,0.00013406,2]
[322881495,1713470407137,150.0,0.00013406,2]
[322881496,1713470407303,150.0,0.00013406,2]
[322881497,1713470407421,150.0,0.00013406,2]
[322881498,1713470407616,150.0,0.00013406,2]
[322881499,1713470407741,150.0,0.00013406,2]
[322881500,1713470407999,150.0,0.00013406,2]
[322881501,1713470408167,150.0,0.00013406,2]
[322881502,1713470408255,284.84998968,0.00013406,2]
[322881503,1713470413703,363.01604032,0.00013405,2]
[322881504,1713470415472,153.02,0.00015408,2]
[322881505,1713470424674,247.691113,0.00015068,2]
[322881506,1713470430561,500.0,0.00015299,2]
[322881507,1713470444541,750.0,0.00015299,2]
[322881508,1713470445241,154.49,0.0001611,15]
[322881509,1713470481074,500.0,0.00015323,2]
[322881510,1713470500764,250.0,0.00015315,2]
[322881511,1713470514928,200.0,0.00015306,2]
[322881512,1713470519950,500.0,0.00015295,2]
[322881513,1713470532467,332.8,0.00015281,2]
[322881514,1713470546021,150.0,0.00015292,2]
[322881515,1713470608440,200.0,0.00015308,2]
[322881516,1713470611487,1188.2,0.00015308,2]
[322881517,1713470642471,2000.0,0.00015313,3]
[322881519,1713470708862,253.19945743,0.00015407,2]
[322881520,1713470711081,23900.0,0.00015288,2]
[322881522,1713470720671,222.922002,0.00015342,2]
[322881523,1713470744235,-150.0,0.00015503,2]
[322881524,1713470745628,-150.0,0.00015503,2]
[322881525,1713470746420,-150.0,0.00015503,2]
[322881526,1713470748544,-150.0,0.00015503,2]
[322881527,1713470749637,162.02270693,0.00015502,2]
[322881528,1713470753564,-693.26801217,0.00015503,2]
[322881529,1713470753583,-1000.0,0.00015504,2]
[322881530,1713470753605,-407.89254635,0.0001551,2]
[322881531,1713470753627,-159.8042354,0.00015528,2]
[322881532,1713470753647,-833.05,0.0001567,2]
[322881533,1713470753668,-150.0,0.00015736,2]
[322881534,1713470753687,-300.0,0.00015736,2]
[322881535,1713470753708,-150.0,0.00015736,2]
[322881536,1713470753730,-38140.63432662,0.00015737,2]
[322881537,1713470753749,-4008.71171338,0.00015738,2]
[322881539,1713470768027,450.0,0.00015407,2]
[322881540,1713470836278,150.0,0.0001535,2]
[322881541,1713470916189,500.0,0.00015407,2]
[322881542,1713470934059,749.74,0.00013489,2]
[322881546,1713470970502,319.70080444,0.00015407,2]
[322881550,1713470971214,500.0,0.00015365,2]
[322881551,1713470972220,319.70080444,0.00015407,2]
[322881552,1713470976789,319.70080444,0.00015407,2]
[322881553,1713470977894,1000.0,0.00015406,2]
[322881554,1713470980885,319.70080444,0.00015407,2]
[322881558,1713471000701,200.0,0.00015403,2]
[322881559,1713471006750,164.83,0.00012332,2]
[322881560,1713471007376,164.83,0.00015415,2]
[322881561,1713471019833,250.0,0.00015402,2]
[322881562,1713471024255,200.629802,0.00015342,2]
[322881563,1713471030794,319.70080444,0.00015407,2]
[322881585,1713471031813,-16607.6172,0.00015637,2]
[322881586,1713471031824,-150.0,0.00015737,2]
[322881587,1713471031833,-749.74,0.00015753,2]
[322881588,1713471031844,-17.14518198,0.00015831,2]
[322881589,1713471031995,-152.59481802,0.00015831,2]
[322881590,1713471032004,-155.0,0.00015838,2]
[322881591,1713471032014,-2923.03820264,0.00015838,2]
[322881592,1713471032025,-2500.63994794,0.00015838,2]
[322881593,1713471032358,-8183.58184942,0.00015838,2]
[322881594,1713471032368,-591.93,0.00015838,2]
[322881595,1713471032377,-499.99,0.00015838,2]
[322881596,1713471032387,-175.27,0.00015873,2]
[322881597,1713471032396,-396.32,0.0001592,2]
[322881598,1713471032406,-667.2,0.00015921,2]
[322881599,1713471032415,-157.91,0.00015921,2]
[322881600,1713471032424,-157.91,0.00015926,2]
[322881601,1713471032433,-157.91,0.00015931,2]
[322881602,1713471032441,-1396.04,0.00015931,2]
[322881603,1713471032451,-150.99,0.00015931,2]
[322881604,1713471032460,-157.91,0.00015936,2]
[322881605,1713471032470,-157.91,0.00015941,2]
[322881606,1713471032479,-157.91,0.00015946,2]
[322881607,1713471032489,-157.91,0.00015951,2]
[322881608,1713471032498,-157.91,0.00015956,2]
[322881609,1713471032508,-157.91,0.00015961,2]
[322881610,1713471032517,-157.91,0.00015966,2]
[322881611,1713471032526,-157.91,0.00015971,2]
[322881612,1713471032536,-157.91,0.00015976,2]
[322881613,1713471032545,-157.91,0.00015981,2]
[322881614,1713471032555,-157.91,0.00015986,2]
[322881615,1713471032565,-157.91,0.00015991,2]
[322881616,1713471032575,-157.91,0.00015996,2]
[322881617,1713471032584,-157.91,0.00016001,2]
[322881618,1713471032599,-1309.97302939,0.00016053,2]
[322881619,1713471032608,-3937.98,0.00016116,2]
[322881620,1713471032618,-6143.88800061,0.00016116,2]
[322881621,1713471032630,-5117.58199939,0.00016116,2]
[322881622,1713471032640,-200.629802,0.00016164,2]
[322881623,1713471032650,-159.80423538,0.00016167,2]
[322881624,1713471032660,-159.98,0.0001638,2]
[322881625,1713471032670,-258.99001207,0.00016438,2]
[322881626,1713471032680,-576.33956984,0.00016438,2]
[322881627,1713471032691,-923.66043016,0.00016438,2]
[322881628,1713471032701,-1100.0,0.000165,6]
[322881629,1713471032711,-162.010745,0.000166,6]
[322881630,1713471032722,-317.946002,0.000166,6]
[322881674,1713471038007,-845.71642721,0.00015636,2]
[322881675,1713471038019,-848.26710872,0.00015636,2]
[322881676,1713471038194,-88291.53791525,0.00015636,2]
[322881677,1713471038287,-364525.32042547,0.00015636,2]
[322881678,1713471038299,-1720.043253,0.000166,6]
[322881679,1713471038308,-3300.0,0.000167,6]
[322881680,1713471038318,-179.15,0.00016712,2]
[322881681,1713471038328,-2647.3152155,0.00016794,2]
[322881682,1713471038337,-1544.1589,0.000168,2]
[322881683,1713471038348,-335.7407,0.000168,2]
[322881684,1713471038357,-4400.0,0.000168,6]
[322881685,1713471038367,-44038.0,0.000168,2]
[322881686,1713471038376,-180.28720509,0.00016806,2]
[322881687,1713471038386,-180.02495681,0.00016806,2]
[322881688,1713471038395,-159.80423538,0.00016806,2]
[322881689,1713471038404,-175.73559832,0.00016822,2]
[322881690,1713471038413,-270.32471608,0.00016822,2]
[322881691,1713471038422,-151.03370214,0.00016827,2]
[322881692,1713471038431,-169.37,0.00016831,2]
[322881693,1713471038440,-500.0,0.00016864,2]
[322881694,1713471038449,-601.42851528,0.00016886,2]
[322881695,1713471038459,-704.6,0.00016888,3]
[322881696,1713471038469,-425.75453347,0.0001689,2]
[322881697,1713471038478,-283.31426977,0.0001689,2]
[322881698,1713471038487,-150.27,0.0001689,2]
[322881699,1713471038496,-150.27,0.0001689,2]
[322881700,1713471038505,-150.27,0.0001689,2]
[322881701,1713471038514,-150.27,0.0001689,2]
[322881702,1713471038524,-150.27,0.0001689,2]
[322881703,1713471038533,-150.27,0.0001689,2]
[322881704,1713471038542,-150.27,0.0001689,2]
[322881705,1713471038552,-150.27,0.0001689,2]
[322881706,1713471038562,-1000.0,0.00016896,2]
[322881707,1713471038571,-208.96057669,0.00016896,2]
[322881708,1713471038580,-571.01966468,0.00016897,7]
[322881709,1713471038589,-405.4757218,0.00016898,2]
[322881710,1713471038599,-300.20034812,0.00016898,2]
[322881711,1713471038608,-155.0,0.00016898,2]
[322881712,1713471038617,-408.17868454,0.00016898,2]
[322881713,1713471038626,-200.17103401,0.00016898,2]
[322881714,1713471038636,-303.00268691,0.00016898,2]
[322881715,1713471038645,-164.40528699,0.00016898,2]
[322881716,1713471038654,-206.64354997,0.00016898,2]
[322881717,1713471038663,-155.0,0.00016898,2]
[322881718,1713471038673,-155.0,0.00016898,2]
[322881719,1713471038682,-683.74835302,0.00016898,2]
[322881720,1713471038691,-155.0,0.00016898,2]
[322881721,1713471038700,-155.0,0.00016898,2]
[322881722,1713471038710,-161.40899078,0.00016898,2]
[322881723,1713471038719,-155.0,0.00016898,2]
[322881724,1713471038728,-313.58324232,0.00016898,2]
[322881725,1713471038737,-201.77104575,0.00016898,2]
[322881726,1713471038747,-267.09258882,0.00016898,2]
[322881727,1713471038756,-298.48067727,0.00016898,2]
[322881728,1713471038766,-361.69441178,0.00016898,2]
[322881729,1713471038775,-973.35986064,0.00016898,2]
[322881730,1713471038784,-333.21924897,0.00016898,2]
[322881731,1713471038793,-888.27805182,0.00016898,2]
[322881732,1713471038801,-449.556772,0.00016898,2]
[322881733,1713471038810,-839.64535407,0.00016898,2]
[322881734,1713471038820,-712.16436581,0.00016898,2]
[322881735,1713471038829,-537.29485027,0.00016898,2]
[322881736,1713471038839,-162.02270693,0.00016898,2]
[322881737,1713471038849,-100090.88384094,0.00016898,2]
[322881738,1713471038859,-378.78784574,0.00016899,2]
[322881739,1713471038868,-408.81570655,0.00016899,2]
[322881740,1713471038878,-194.27273769,0.00016899,2]
[322881741,1713471038887,-155.0,0.00016899,2]
[322881742,1713471038896,-305.12478277,0.00016899,2]
[322881743,1713471038905,-236.59678776,0.00016899,2]
[322881744,1713471038914,-155.0,0.00016899,2]
[322881745,1713471038925,-155.0,0.00016899,2]
[322881746,1713471038934,-709.5115768,0.00016899,2]
[322881747,1713471038944,-559.08354536,0.00016899,2]
[322881748,1713471038953,-189.93127907,0.00016899,2]
[322881749,1713471038963,-565.54,0.00016899,2]
[322881750,1713471038973,-565.54,0.00016899,2]
[322881751,1713471038982,-565.54,0.00016899,2]
[322881752,1713471038991,-565.54,0.00016899,2]
[322881753,1713471039000,-565.54,0.00016899,2]
[322881754,1713471039010,-565.54,0.00016899,2]
[322881755,1713471039019,-565.54,0.00016899,2]
[322881756,1713471039029,-565.54,0.00016899,2]
[322881757,1713471039040,-565.54,0.00016899,2]
[322881758,1713471039049,-565.54,0.00016899,2]
[322881759,1713471039059,-185.44808536,0.00016899,2]
[322881760,1713471039068,-670.0,0.000169,2]
[322881761,1713471039077,-5500.0,0.000169,6]
[322881762,1713471039086,-1022496.80434985,0.000169,3]
[322881763,1713471039099,-280.4,0.000169,3]
[322881764,1713471039110,-46793.83099207,0.000169,3]
[322881765,1713471039122,-618.70751467,0.000169,3]
[322881766,1713471039286,-438.29,0.0001593,2]
[322881767,1713471039297,-1266.48468899,0.000169,3]
[322881768,1713471039310,-4722.76454072,0.000169,3]
[322881770,1713471040799,-462.17789174,0.000169,3]
[322881771,1713471040810,-357.58454009,0.000169,3]
[322881772,1713471040987,-3071.00803848,0.000169,3]
[322881773,1713471041022,-313933.55301214,0.000169,3]
[322881774,1713471041034,-6625.51147268,0.000169,3]
[322881775,1713471041045,-2645.5290576,0.000169,3]
[322881776,1713471041057,-848.067256,0.000169,3]
[322881777,1713471041099,-764127.02234103,0.000169,3]